Cogmind - Beta 15 @@@ ROGUE MODE // 2025.08.23 @ 22:25:40 Player: shockman27 Result: Destroyed by YI-UF0 with YI-UF0's Doublenader Performance ------------- Evolutions (0) 0 Regions Visited (2) 400 Robots Destroyed (28) 140 Value Destroyed (465) 465 Prototype IDs (1) 20 Alien Tech Used (0) 0 Bonus (0) 0 TOTAL SCORE: 1025 Bonus ------- None Cogmind --------- Core Integrity 0/250 Matter 269/300 Energy 238/250 System Corruption 0% Temperature Warning (375) Movement Rolling (145) Ox3 Location -10/Mines Parts ------- > --- POWER (1) -------- Ion Engine > --- PROPULSION (2) --- Compact Wheel > --- UTILITY (2) ------ High-capacity Storage Unit Seismic Detector > --- WEAPON (2) ------- Advanced Beam Cannon > --- INVENTORY (20) --- Ion Engine Light Treads Light Treads Light Treads Light Treads Wheel Improved Hover Unit Improved Hover Unit Improved Hover Unit Improved Hover Unit Medium Matter Pod (100) Trap Extractor (4/4 Blade) Advanced Beam Cannon Assault Rifle Assault Rifle EMP Blaster Rocket Launcher Heavy Hammer Peak State ------------ > --- POWER ------------ Ion Engine > --- PROPULSION ------- Light Treads Wheel > --- UTILITY ---------- High-capacity Storage Unit Seismic Detector > --- WEAPON ----------- Advanced Beam Cannon Advanced Beam Cannon > --- INVENTORY -------- Ion Engine Light Treads Light Treads Light Treads Light Treads Compact Wheel Improved Hover Unit Improved Hover Unit Improved Hover Unit Improved Hover Unit Medium Matter Pod Trap Extractor Advanced Beam Cannon Assault Rifle Assault Rifle Assault Rifle EMP Blaster Rocket Launcher Mining Laser Heavy Hammer [Rating: 14] Favorites ----------- Power Ion Engine Engine Ion Engine Propulsion Light Treads Treads Light Treads Wheel Wheel Utility Seismic Detector Device Seismic Detector Storage High-capacity Storage Unit Weapon Assault Rifle Energy Cannon Advanced Beam Cannon Ballistic Gun Assault Rifle Launcher Rocket Launcher Impact Weapon Heavy Hammer Build | -11 -10 -10 ------- Run | Yrd Mat Min Slots Evolved . | . . . Power . | . . . Propulsion . | . . . Utility . | . . . Weapon . | . . . Parts Attached 19 | 7 10 2 Power 2 | 1 1 . Engine 2 | 1 1 . Core . | . . . Reactor . | . . . Propulsion 5 | 2 2 1 Treads 3 | 2 1 . Leg . | . . . Wheel 2 | . 1 1 Hover . | . . . Flight . | . . . Utility 5 | 2 3 . Device 2 | 1 1 . Storage 3 | 1 2 . Processor . | . . . Hackware . | . . . Protection . | . . . Artifact . | . . . Weapon 7 | 2 4 1 Energy Gun . | . . . Energy Cannon 3 | . 2 1 Ballistic Gun 2 | 2 . . Ballistic Cannon . | . . . Launcher 1 | . 1 . Special Weapon . | . . . Impact Weapon 1 | . 1 . Slashing Weapon . | . . . Piercing Weapon . | . . . Special Melee Weapon . | . . . Unidentified Prototypes 1 | . 1 . Parts Lost 3 | . . 3 Power . | . . . Propulsion 1 | . . 1 Utility . | . . . Weapon 2 | . . 2 Highest Loss Streak 3 | . . 3 To Critical Strikes . | . . . Average Backups 13 | 3 14 18 Power . | . 1 1 Propulsion 5 | 1 6 9 Utility 1 | . 1 2 Weapon 5 | . 5 6 Tool/Special . | . . . Unused Backups 15 | . 5 10 Power 3 | . 2 1 Propulsion 6 | . . 6 Utility 1 | . . 1 Weapon 5 | . 3 2 Tool/Special . | . . . Average Slot Usage (%) 99 | . 100 98 Engine 14 | . 14 14 Treads 14 | . 14 13 Wheel 13 | . 13 14 Device 14 | . 14 14 Storage 14 | . 14 14 Energy Cannon 9 | . 8 14 Ballistic Gun 15 | . 16 8 Impact Weapon 3 | . 2 4 Peak Build Rating 14 | 7 14 13 Average Rating 10 | 6 10 12 On Entrance 6 | . 7 13 Naked Turns . | . . . Heaviest Build 54 | 15 54 53 Greatest Support 40 | 40 40 16 Greatest Overweight (x) 5 | . 5 5 Average Overweight (x) 3 | . 3 3 Largest Inventory Capacity 20 | 8 20 20 Average Capacity 15 | 7 16 20 Most Carried 20 | 5 20 19 Average Carried 13 | 3 14 18 Final Capacity 20 | 8 20 20 Final Carried 19 | 5 19 18 Class Distribution -------------------- 100% | Mutant Dominant Class ---------------- Mutant | -10/Materials Mutant | -10/Mines Resources | -11 -10 -10 ----------- Run | Yrd Mat Min Matter Collected 863 | 363 500 . Remotely . | . . . Salvage Created 790 | 121 626 43 Parts 63 | 18 42 3 Haulers Intercepted 2 | . 2 . Recyclers Shooed . | . . . Parts Field Recycled . | . . . Retrieved Matter . | . . . Parts Self-Destructed . | . . . Prevented . | . . . Kills | -11 -10 -10 ------- Run | Yrd Mat Min Combat Hostiles Destroyed 13 | . 10 3 Melee 2 | . . 2 Guns 6 | . 6 . Cannons 4 | . 4 . Classes Destroyed 7 | 1 6 . Tunneler 8 | 7 1 . Hauler 2 | . 2 . Recycler 1 | . 1 . Operator 1 | . 1 . Watcher 3 | . 3 . Swarmer 5 | . 2 3 Grunt 8 | . 8 . Best Kill Streak 3 | 2 3 3 Combat Bots Only 3 | . 3 3 Max Kills in Single Turn 1 | 1 1 1 Gunslinging . | . . . Exploded . | . . . Melee 1 | . . 1 Uniques/NPCs Destroyed . | . . . Combat | -11 -10 -10 -------- Run | Yrd Mat Min Hostile Shots Fired 54 | . 23 31 Missed 17 | . 9 8 Hits 37 | . 14 23 Projectile 37 | . 14 23 AOE 20 | . . 20 Damage Taken 899 | . 200 699 Core 267 | . 70 197 Absorbed by Shields . | . . . Core Remaining (%) 100 | 100 . . Volleys Fired 74 | 16 50 8 Largest 2 | 2 2 2 Hottest 136 | 40 136 136 Shots Fired 144 | 32 98 14 Gun 109 | 32 75 2 Cannon 33 | . 21 12 Launcher 2 | . 2 . Special . | . . . Kinetic 109 | 32 75 2 Thermal 33 | . 21 12 Explosive 2 | . 2 . Electromagnetic . | . . . Robot Hit Streak 7 | 7 7 4 Robot Miss Streak 4 | 2 4 3 Penetration Max . | . . . Secondary Targets 1 | . 1 . Max Gunslinging Chain 1 | . 1 . Shots Hit Robots 86 | 22 53 11 Core Hits 35 | 8 25 2 Critical Kills 1 | . 1 . Critical Parts Destroyed . | . . . Critical Strikes 1 | . 1 . Destroy 1 | . 1 . Melee Attacks 12 | . 8 4 Impact 12 | . 8 4 Slashing . | . . . Piercing . | . . . Sneak Attacks 2 | . 1 1 Combat Hostiles 1 | . . 1 Follow-up Attacks . | . . . Damage Inflicted 1462 | 278 877 307 Guns 804 | 278 513 13 Cannons 424 | . 280 144 Explosions . | . . . Melee 234 | . 84 150 Ramming . | . . . Kinetic 804 | 278 513 13 Thermal 424 | . 280 144 Explosive . | . . . Electromagnetic . | . . . Impact 234 | . 84 150 Slashing . | . . . Piercing . | . . . Highest Corruption . | . . . Average Corruption . | . . . Corruption Purged . | . . . Corruption Blocked . | . . . Overload Shots . | . . . Overflow Damage 105 | . 1 104 Projectiles 15 | . 1 14 Explosions . | . . . Melee 90 | . . 90 Knockbacks . | . . . Impact . | . . . Kinetic . | . . . Secondary . | . . . Self-Inflicted Damage . | . . . Shots . | . . . Rammed . | . . . Targets Rammed . | . . . Kicked . | . . . Crushed . | . . . Highest Temperature 375 | . 108 375 Average Temperature 66 | . 37 175 Received Heat Transfer 81 | . 81 . Effects 2 | . . 2 Shutdowns 1 | . . 1 Short Circuit 1 | . . 1 Siege Activations . | . . . Martial Activations . | . . . Shielding Activations . | . . . Robots Disrupted . | . . . Combat Hostiles . | . . . Robots Corrupted 1 | . . 1 Combat Hostiles 1 | . . 1 Parts Fried . | . . . Impact Corruptions 4 | . . 4 Robots Melted . | . . . Combat Hostiles . | . . . Parts Melted 1 | . 1 . Heat Transferred 740 | . 481 259 Parts Sabotaged . | . . . Parts Stolen . | . . . Parts Stripped . | . . . Power Chain Reactions . | . . . Alert | -11 -10 -10 ------- Run | Yrd Mat Min Maximum Alert Level . | . . . Low Security (%) 100 | 100 100 100 Level 1 . | . . . Level 2 . | . . . Level 3 . | . . . Level 4 . | . . . Level 5 . | . . . High Security . | . . . Max Security . | . . . Peak Influence 89 | 5 60 89 Initial 19 | . . 19 Average 20 | . 21 42 Influence Increases 508 | 35 403 70 Destroy 0b10 Robot/C 260 | . 200 60 Destroy 0b10 Robot/NC 75 | 35 40 . Destroy Leader 70 | . 60 10 Successful Hack 28 | . 28 . Select Force Hacks 60 | . 60 . Destroy Structure 15 | . 15 . Influence Decreases 508 | 35 352 121 Entered New Map 32 | . . 32 Time Decay 467 | 35 352 80 Lost Part 9 | . . 9 Squads Dispatched 5 | . 5 . Investigation 2 | . 2 . Extermination . | . . . Reinforcement 3 | . 3 . Assault . | . . . Garrison . | . . . Intercept . | . . . Searches Triggered . | . . . Construction Impeded . | . . . Haulers Reinforced . | . . . Active Scanning Responses . | . . . Cargo Convoy Interrupts . | . . . Stealth | -11 -10 -10 --------- Run | Yrd Mat Min Distress Signals . | . . . Communications Jammed . | . . . Distress Signals . | . . . Times Spotted 22 | . 19 3 Peak Tracking Total 3 | . 3 2 Tactical Retreats . | . . . Traps | -11 -10 -10 ------- Run | Yrd Mat Min Traps Triggered 1 | . 1 . Indirectly . | . . . Trap Hack Attempts . | . . . Triggered . | . . . Disarmed . | . . . Reprogrammed 7 | . 7 . Reused . | . . . Traps Extracted 6 | . 6 . Installed . | . . . Triggered . | . . . Most Traps Carried 4 | . 4 4 Machines | -11 -10 -10 ---------- Run | Yrd Mat Min Machines Disabled . | . . . Max in Single Turn . | . . . Machines Repaired . | . . . Machines Dismantled . | . . . Machines Sabotaged . | . . . Overloaded Fab Kills . | . . . Hacking | -11 -10 -10 --------- Run | Yrd Mat Min Machines Accessed 8 | . 7 1 Terminals 6 | . 5 1 Fabricators . | . . . Repair Stations . | . . . Recycling Units 2 | . 2 . Scanalyzers . | . . . Garrison Access . | . . . Total Hacks 22 | . 18 4 Successful 11 | . 11 . Failed 10 | . 6 4 Catastrophic 2 | . 1 1 Database Lockouts 1 | . 1 . Manual 11 | . 11 . Terminals 20 | . 16 4 Fabricators . | . . . Repair Stations . | . . . Recycling Units 2 | . 2 . Scanalyzers . | . . . Garrison Access . | . . . Terminal Hacks 8 | . 8 . Robot Analysis 3 | . 3 . Alert Level 1 | . 1 . Locate Traps 2 | . 2 . Reprogram Traps 2 | . 2 . Fabricator Hacks . | . . . Repair Station Hacks . | . . . Recycling Unit Hacks . | . . . Scanalyzer . | . . . Garrison Access Hacks . | . . . Unauthorized Hacks 3 | . 3 . Terminals 1 | . 1 . Botnet 1 | . 1 . Fabricators . | . . . Repair Stations . | . . . Recycling Units 2 | . 2 . Tunnel 2 | . 2 . Scanalyzers . | . . . Garrison Access . | . . . Data Cores Recovered . | . . . Used . | . . . Hacking Detections 6 | . 5 1 Full Trace Events 1 | . 1 . Feedback Events . | . . . Feedback Blocked . | . . . Robot Schematics Acquired . | . . . Robots Built . | . . . Authchips . | . . . Time . | . . . Total Robot Build Rating . | . . . Part Schematics Acquired . | . . . Parts Built . | . . . Authchips . | . . . Time . | . . . Total Part Build Rating . | . . . Parts Repaired . | . . . Time . | . . . Parts Recycled . | . . . Recycled Matter . | . . . Retrieved Matter . | . . . Retrieved Components . | . . . Parts Scanalyzed . | . . . Part Schematics Acquired . | . . . Parts Damaged . | . . . Bothacking | -11 -10 -10 ------------ Run | Yrd Mat Min Used RIF Installer . | . . . Robots Hacked . | . . . Non-combat . | . . . Combat . | . . . Robot Hacks Applied . | . . . Relay Couplers Released . | . . . Fabnet Peak Effective % . | . . . Robots Rewired . | . . . Allies Hacked . | . . . Hacks Repelled . | . . . Allies | -11 -10 -10 -------- Run | Yrd Mat Min Total Allies . | . . . Largest Group . | . . . Highest-Rated Group . | . . . Highest-Rated Ally . | . . . Total Orders . | . . . Ally Attacks . | . . . Total Damage . | . . . Kills . | . . . Allies Corrupted . | . . . Allies Melted . | . . . Intel | -11 -10 -10 ------- Run | Yrd Mat Min Active Infowar (turns) 2066 | 195 1677 194 Seismic 2066 | 195 1677 194 Robot Analysis Total 3 | . 3 . Derelict Logs Recovered . | . . . Drone Launches . | . . . Drone Recoveries . | . . . Exploration | -11 -10 -10 ------------- Run | Yrd Mat Min Turns Passed 2149 | 252 1703 194 Spaces Moved 1304 | 88 1111 105 Core 3 | 3 . . Treads 121 | 85 36 . Legs . | . . . Wheels 1180 | . 1075 105 Hover . | . . . Flight . | . . . Fastest Speed 50 | 50 95 145 Average Speed 135 | 156 132 147 Slowest Speed 240 | 160 240 155 Overloaded Moves . | . . . Propulsion Burnouts . | . . . Robots Hopped . | . . . Potential Cave-ins . | . . . Cave-ins Triggered . | . . . Exploration Rate (%) 44 | 5 100 27 Regions Visited 2 Branch Regions 1 Pre-discovered Areas 2 | . 2 . Known Exits Taken . | . . . Unknown Exits Taken 2 | 1 1 . Scrap Searched . | . . . Spaces Dug 10 | . 10 . Terrain Destroyed 13 | . 13 . Melee 6 | . 6 . Projectile . | . . . AOE 7 | . 7 . Terrain Rammed . | . . . Walls Destroyed . | . . . Machines Disabled . | . . . Actions | -11 -10 -10 --------- Run | Yrd Mat Min Total 1521 | 167 1233 121 Wait 78 | 52 26 . Move 1302 | 87 1110 105 Hop . | . . . Pick Up 24 | 5 19 . Fast Attach 7 | 7 . . Attach 1 | . . 1 Detach . | . . . Swap 15 | . 12 3 Drop 8 | . 8 . Fire 74 | 16 50 8 Melee 12 | . 8 4 Ram . | . . . Kick . | . . . Crush . | . . . Escape Stasis . | . . . Rewire . | . . . Trap . | . . . Miscellaneous . | . . . Route ------- -11/Scrapyard -10/Materials (discovered 5 exits: [*Mat x3] / *Min / [*Sub]) -10/Mines History --------- Turn | Location | Event 29 | -11/Scrapyard | Discovered new exit (range 16) 253 | -11/Scrapyard | Entered Materials 311 | -10/Materials | Build established: Mutant 508 | -10/Materials | Discovered new exit (range 15) 676 | -10/Materials | Discovered new exit (range 15) 941 | -10/Materials | Discovered new exit (range 12) 949 | -10/Materials | Central database locked down 953 | -10/Materials | Derelicts attacked the area 1204 | -10/Materials | Discovered new exit (range 8) 1561 | -10/Materials | Discovered new exit (range 15) 1956 | -10/Materials | Entered Mines 2127 | -10/Mines | Core integrity fell below 50% 2140 | -10/Mines | Core integrity fell below 20% 2150 | -10/Mines | Destroyed by YI-UF0 with YI-UF0's Doublenader Last Messages --------------- 01965_ Destroyed Flight Unit. 01965_ S-10 Pest system corrupted by crushing effect. 01965_ S-10 Pest destroyed. 01989_ Connecting with Terminal... 01989_ Current location identified: Mines 02113_ YI-UF0 mumbles something. 02120_ YI-UF0: "Whaaaaaaaa!" 02123_ YI-UF0: "BWOOM!" 02130_ Assault Rifle destroyed. 02133_ YI-UF0 mumbles something. 02135_ The unstable cave ceiling collapses. 02140_ Destroyed Shock Absorption System. 02145_ The unstable cave ceiling collapses. 02146_ Adv. Beam Cannon broken. 02146_ Overheating: Short circuit. 02146_ The unstable cave ceiling collapses. 02147_ Power failure, Ion Engine shutdown. 02148_ Broken Adv. Beam Cannon destroyed. 02148_ Lgt. Treads destroyed. 02149_ The unstable cave ceiling collapses. Map ----- +----------------------------------------------------+ | ???????????????????????????????????????????????? | | ???????????????????????????????????????????????? | | ???????????????????????????????????????????????? | | ???????????????????????????????????????????????? | | ???????????????????????????????????????????????? | | ???????????????????????????????????????????????? | | ???????????????????????????????????????????????? | | ???????????????????????????????????????????????? | | ???????????????????????????????????????????????? | | ???????????????????????????????????????????????? | | ???????????????????????????????????????????????? | | ???????????????????????????????????????????????? | | ???????????????????????????????????????????????? | | ???????????????????????????????????????????????? | | ???????????????????????????????????????????????? | | ???????????????????????????????????????????????? | | ???????????????????????????????????????????????? | | ????????????????????????????###????????????????? | | ???????????????????????????# ##???????????????? | | ???????????????????######## #???????????????? | | ??????????????????## #???????????????? | | ??????????????????# ##??????????????? | | ???????????????##### ###????????????? | | ???????????????# ##???????????? | | ???????????????## ####????????? | | ???????????????# @ r ????????? | | ???????????????## #????????????? | | ????????????????# ##???????????? | | ????????????????# # #???????????? | | ????????????????# ##??????????? | | ?????????????####### g #??????????? | | ????????????## ??????? | | ????????????# ##### ??????? | | ???????????## ##????##### ??????? | | ???????????# ##??????????# ### ???????? | | ???????????# #?????????????###???????????? | | ???????????## #???????????????????????????? | | ????????????# #???????????????????????????? | | ???????????# ## #?####??????????????????????? | | ??????????# ### ### ###????????????????????? | | ??????????# #??# ##???????????????????? | | ?????????# #???# ##??????????????????? | | ????????# ????#### ##?????????????????? | | ????????# ???????# ##????????????????? | | ????????# ????????# ### #????????????????? | | ??#########????????# #?## ##???????????????? | | ??# #????????# #??# #???????????????? | | ?## ########## #??# #???????????????? | | ?#T #??## ##???????????????? | | ?## """% %########## #???### #????????????????? | +----------------------------------------------------+ Best States ------------- Heat Dissipation 25 Energy Generation 10 Energy Capacity 250 Matter Stores 300 Matter Capacity 300 Sight Range 16 Terrain Scan Density 10 Evasion (%) 41 Recoil Reduction 2 Trap Extractor Capacity 4 Item Schematics ----------------- None Robot Schematics ------------------ None Fabricated ------------ Nothing Repaired ---------- Nothing Alien Tech Used ----------------- None Achievements -------------- None Challenges ------------ None Game ------ Seed TechPlasmaRifle Manual? 0 Play Time 00:16:47 Cumulative 149.8 hours Start 2025.08.23 @ 21:56:20 End 2025.08.23 @ 22:25:40 Sessions 1 Manual Loads 0 Difficulty Rogue Special Mode None Game No. 86 Rogue 82 Adventurer 4 Explorer 0 Win Type - Total 3 Types 2/0/0/1/0/0/0/0/0/0 Lore% 65 Gallery% 57 Achievement% 49 Wizard Run 0 Options --------- Layout 0 ASCII 0 Keyboard 1 Movement Vi Keybinds 0 Fullscreen 1 Font 24/Smallcaps Map View 76x50 Zoom Use 0% Tactical HUD 1 Map Filters NONE Filters NONE Steam 1 RUN: 885e15e2-dcb4-4ea9-b759-dbec5c683688